[Event "Titled Tuesday Blitz March 22 Late 2022"]
[White "Atanejhad, Sahebali"]
[Black "Horak, Martin"]
[WhiteFideId "12506664"]
[BlackFideId "367095"]
[WhiteElo "1977"]
[BlackElo "1997"]
[Result "1-0"]
[Round "10"]
[TimeControl "180+1"]
[Date "2022.03.22"]
[WhiteClock "0:01:17"]
[BlackClock "0:00:50"]

1. d4 {[%clk 0:03:00]}  Nf6 {[%clk 0:02:58]} 2. c4 {[%clk 0:03:00]}  b6 {[%clk 0:02:57]} 3. Nf3 {[%clk 0:02:59]}  Bb7 {[%clk 0:02:55]} 4. g3 {[%clk 0:02:59]}  e6 {[%clk 0:02:52]} 5. Bg2 {[%clk 0:02:59]}  Be7 {[%clk 0:02:53]} 6. O-O {[%clk 0:02:59]}  O-O {[%clk 0:02:53]} 7. d5 {[%clk 0:02:59]}  exd5 {[%clk 0:02:54]} 8. Nh4 {[%clk 0:02:58]}  c6 {[%clk 0:02:53]} 9. cxd5 {[%clk 0:02:57]}  Nxd5 {[%clk 0:02:52]} 10. Nf5 {[%clk 0:02:58]}  Nc7 {[%clk 0:02:49]} 11. Nc3 {[%clk 0:02:56]}  d5 {[%clk 0:02:43]} 12. e4 {[%clk 0:02:56]}  Re8 {[%clk 0:01:57]} 13. Qg4 {[%clk 0:02:54]}  g6 {[%clk 0:01:55]} 14. Nh6+ {[%clk 0:02:52]}  Kg7 {[%clk 0:01:56]} 15. Bf4 {[%clk 0:02:42]}  Bc8 {[%clk 0:01:20]} 16. Qf3 {[%clk 0:01:52]}  d4 {[%clk 0:01:06]} 17. Nxf7 {[%clk 0:01:46]}  Qd7 {[%clk 0:00:59]} 18. Be5+ {[%clk 0:01:43]}  Kf8 {[%clk 0:00:41]} 19. Nh6+ {[%clk 0:01:37]}  Qf5 {[%clk 0:00:41]} 20. exf5 {[%clk 0:01:35]}  gxf5 {[%clk 0:00:41]} 21. Bxd4 {[%clk 0:01:33]}  Nd5 {[%clk 0:00:41]} 22. Nxd5 {[%clk 0:01:32]}  cxd5 {[%clk 0:00:42]} 23. Nxf5 {[%clk 0:01:31]}  Be6 {[%clk 0:00:43]} 24. Nxe7+ {[%clk 0:01:31]}  Kxe7 {[%clk 0:00:44]} 25. Rfe1 {[%clk 0:01:29]}  Kd7 {[%clk 0:00:44]} 26. Qh5 {[%clk 0:01:24]}  Nc6 {[%clk 0:00:45]} 27. Bf6 {[%clk 0:01:22]}  Re7 {[%clk 0:00:46]} 28. Bxe7 {[%clk 0:01:22]}  Nxe7 {[%clk 0:00:47]} 29. Qxh7 {[%clk 0:01:22]}  Rf8 {[%clk 0:00:48]} 30. Rxe6 {[%clk 0:01:19]}  Rf7 {[%clk 0:00:49]} 31. Qxf7 {[%clk 0:01:19]}  Kd8 {[%clk 0:00:49]} 32. Qxe7+ {[%clk 0:01:17]}  Kc8 {[%clk 0:00:50]} 33. Rc6+ {[%clk 0:01:17]}  Kb8 {[%clk 0:00:51]} 34. Qc7+ {[%clk 0:01:17]}  Ka8 {[%clk 0:00:50]} 35. Qc8# {[%clk 0:01:17]} 1-0


[Site "https://www.chess.com"]

[Event "Titled Tuesday Blitz March 22 Late 2022"]
[White "Aydin, Gulenay"]
[Black "Nazaretyan, Tigran"]
[WhiteFideId "34557431"]
[BlackFideId "24162345"]
[WhiteElo "1429"]
[BlackElo "2219"]
[Result "0-1"]
[Round "10"]
[TimeControl "180+1"]
[Date "2022.03.22"]
[WhiteClock "0:00:03"]
[BlackClock "0:00:42"]

1. e4 {[%clk 0:03:00]}  c5 {[%clk 0:02:57]} 2. Nf3 {[%clk 0:03:01]}  Nc6 {[%clk 0:02:57]} 3. Bb5 {[%clk 0:03:00]}  g6 {[%clk 0:02:54]} 4. O-O {[%clk 0:02:59]}  Bg7 {[%clk 0:02:54]} 5. Re1 {[%clk 0:03:00]}  Nf6 {[%clk 0:02:54]} 6. c3 {[%clk 0:03:01]}  O-O {[%clk 0:02:53]} 7. d4 {[%clk 0:03:02]}  d5 {[%clk 0:02:53]} 8. e5 {[%clk 0:03:02]}  Ne4 {[%clk 0:02:54]} 9. Bxc6 {[%clk 0:03:03]}  bxc6 {[%clk 0:02:54]} 10. Nbd2 {[%clk 0:03:03]}  cxd4 {[%clk 0:02:53]} 11. cxd4 {[%clk 0:03:03]}  Bf5 {[%clk 0:02:48]} 12. Nb3 {[%clk 0:02:48]}  a5 {[%clk 0:02:45]} 13. Be3 {[%clk 0:02:31]}  a4 {[%clk 0:02:44]} 14. Nc1 {[%clk 0:02:28]}  Qb6 {[%clk 0:02:42]} 15. Nd3 {[%clk 0:02:27]}  Qb5 {[%clk 0:02:36]} 16. Nh4 {[%clk 0:02:21]}  Nc3 {[%clk 0:02:18]} 17. bxc3 {[%clk 0:02:14]}  Bxd3 {[%clk 0:02:18]} 18. Nf3 {[%clk 0:01:45]}  f6 {[%clk 0:02:11]} 19. Bf4 {[%clk 0:01:35]}  Be4 {[%clk 0:02:07]} 20. Nd2 {[%clk 0:01:30]}  fxe5 {[%clk 0:02:06]} 21. Nxe4 {[%clk 0:01:29]}  Rxf4 {[%clk 0:02:04]} 22. Nc5 {[%clk 0:01:16]}  exd4 {[%clk 0:01:57]} 23. Ne6 {[%clk 0:01:15]}  Rf7 {[%clk 0:01:52]} 24. Nc7 {[%clk 0:01:07]}  Qb7 {[%clk 0:01:41]} 25. Nxa8 {[%clk 0:01:08]}  dxc3 {[%clk 0:01:41]} 26. Qxa4 {[%clk 0:01:08]}  Rf8 {[%clk 0:01:31]} 27. Nb6 {[%clk 0:00:35]}  Qxb6 {[%clk 0:01:28]} 28. Re2 {[%clk 0:00:30]}  e5 {[%clk 0:01:20]} 29. Rc1 {[%clk 0:00:18]}  e4 {[%clk 0:01:18]} 30. Qa3 {[%clk 0:00:08]}  Bd4 {[%clk 0:01:11]} 31. Rf1 {[%clk 0:00:06]}  Qb5 {[%clk 0:00:55]} 32. Rc2 {[%clk 0:00:04]}  Qd3 {[%clk 0:00:54]} 33. Qa4 {[%clk 0:00:03]}  c5 {[%clk 0:00:51]} 34. Rcc1 {[%clk 0:00:02]}  e3 {[%clk 0:00:49]} 35. Qc2 {[%clk 0:00:03]}  exf2+ {[%clk 0:00:49]} 36. Kh1 {[%clk 0:00:03]}  c4 {[%clk 0:00:47]} 37. a4 {[%clk 0:00:02]}  Be3 {[%clk 0:00:45]} 38. g3 {[%clk 0:00:03]}  Bxc1 {[%clk 0:00:42]} 0-1


[Site "https://www.chess.com"]

[Event "Titled Tuesday Blitz March 22 Late 2022"]
[White "Barp, Alberto"]
[Black "Kozin, Yuri"]
[WhiteFideId "872555"]
[BlackFideId "4129920"]
[WhiteElo "2229"]
[BlackElo "2548"]
[Result "1-0"]
[Round "10"]
[TimeControl "180+1"]
[Date "2022.03.22"]
[WhiteClock "0:00:22"]
[BlackClock "0:00:02"]

1. d4 {[%clk 0:03:00]}  d5 {[%clk 0:02:59]} 2. c4 {[%clk 0:02:57]}  c6 {[%clk 0:03:00]} 3. Nf3 {[%clk 0:02:55]}  Nf6 {[%clk 0:03:00]} 4. e3 {[%clk 0:02:55]}  Bf5 {[%clk 0:02:59]} 5. Nc3 {[%clk 0:02:52]}  e6 {[%clk 0:02:59]} 6. Nh4 {[%clk 0:02:52]}  Be4 {[%clk 0:02:59]} 7. f3 {[%clk 0:02:52]}  Bg6 {[%clk 0:02:59]} 8. g3 {[%clk 0:02:51]}  Nbd7 {[%clk 0:02:58]} 9. Bd2 {[%clk 0:02:50]}  Be7 {[%clk 0:02:55]} 10. Qb3 {[%clk 0:02:47]}  Qc7 {[%clk 0:02:53]} 11. cxd5 {[%clk 0:02:45]}  Nxd5 {[%clk 0:02:51]} 12. Nxg6 {[%clk 0:02:44]}  hxg6 {[%clk 0:02:50]} 13. O-O-O {[%clk 0:02:43]}  N7f6 {[%clk 0:02:32]} 14. e4 {[%clk 0:02:40]}  Nxc3 {[%clk 0:02:23]} 15. Bxc3 {[%clk 0:02:41]}  O-O {[%clk 0:02:23]} 16. Kb1 {[%clk 0:02:38]}  a5 {[%clk 0:02:23]} 17. Qc2 {[%clk 0:02:33]}  a4 {[%clk 0:02:18]} 18. h4 {[%clk 0:02:30]}  b5 {[%clk 0:02:13]} 19. h5 {[%clk 0:02:20]}  gxh5 {[%clk 0:02:13]} 20. e5 {[%clk 0:02:11]}  Nd5 {[%clk 0:02:12]} 21. Bd3 {[%clk 0:02:01]}  Nxc3+ {[%clk 0:02:08]} 22. bxc3 {[%clk 0:01:59]}  h4 {[%clk 0:02:06]} 23. Qe2 {[%clk 0:01:44]}  b4 {[%clk 0:02:00]} 24. Qe4 {[%clk 0:01:37]}  g6 {[%clk 0:01:59]} 25. Qg4 {[%clk 0:01:37]}  bxc3 {[%clk 0:01:47]} 26. Kc2 {[%clk 0:01:35]}  Rab8 {[%clk 0:01:16]} 27. Bxg6 {[%clk 0:01:26]}  fxg6 {[%clk 0:01:01]} 28. Qxg6+ {[%clk 0:01:24]}  Kh8 {[%clk 0:01:01]} 29. Qh6+ {[%clk 0:01:22]}  Kg8 {[%clk 0:01:01]} 30. Qxe6+ {[%clk 0:01:16]}  Rf7 {[%clk 0:00:58]} 31. gxh4 {[%clk 0:01:09]}  Rb2+ {[%clk 0:00:35]} 32. Kxc3 {[%clk 0:01:05]}  Rg2 {[%clk 0:00:27]} 33. Rhg1 {[%clk 0:00:56]}  Qa5+ {[%clk 0:00:26]} 34. Kd3 {[%clk 0:00:57]}  Qb5+ {[%clk 0:00:22]} 35. Qc4 {[%clk 0:00:56]}  Qxc4+ {[%clk 0:00:17]} 36. Kxc4 {[%clk 0:00:57]}  Rxg1 {[%clk 0:00:15]} 37. Rxg1+ {[%clk 0:00:58]}  Kh7 {[%clk 0:00:16]} 38. h5 {[%clk 0:00:53]}  Rxf3 {[%clk 0:00:15]} 39. Rg6 {[%clk 0:00:51]}  Rf2 {[%clk 0:00:12]} 40. Rxc6 {[%clk 0:00:48]}  Rxa2 {[%clk 0:00:12]} 41. Kd5 {[%clk 0:00:47]}  Kg7 {[%clk 0:00:09]} 42. Rc7 {[%clk 0:00:44]}  Kf7 {[%clk 0:00:09]} 43. Ke4 {[%clk 0:00:35]}  Rh2 {[%clk 0:00:08]} 44. d5 {[%clk 0:00:35]}  Rh4+ {[%clk 0:00:08]} 45. Kf3 {[%clk 0:00:34]}  Rxh5 {[%clk 0:00:07]} 46. Kf4 {[%clk 0:00:29]}  Rh4+ {[%clk 0:00:06]} 47. Kf5 {[%clk 0:00:29]}  Rh5+ {[%clk 0:00:06]} 48. Kf4 {[%clk 0:00:29]}  Ke8 {[%clk 0:00:07]} 49. d6 {[%clk 0:00:26]}  Bd8 {[%clk 0:00:07]} 50. Ra7 {[%clk 0:00:25]}  Rh4+ {[%clk 0:00:06]} 51. Kf5 {[%clk 0:00:25]}  Rh5+ {[%clk 0:00:05]} 52. Ke6 {[%clk 0:00:26]}  Rh6+ {[%clk 0:00:05]} 53. Kd5 {[%clk 0:00:26]}  Rh4 {[%clk 0:00:05]} 54. e6 {[%clk 0:00:23]}  Rh5+ {[%clk 0:00:04]} 55. Kc6 {[%clk 0:00:22]}  Ra5 {[%clk 0:00:02]} 56. Rh7 {[%clk 0:00:22]} 1-0


[Site "https://www.chess.com"]

[Event "Titled Tuesday Blitz March 22 Late 2022"]
[White "Bluebaum, Matthias"]
[Black "Yoo, Christopher Woojin"]
[WhiteFideId "24651516"]
[BlackFideId "30909694"]
[WhiteElo "2550"]
[BlackElo "2105"]
[Result "0-1"]
[Round "10"]
[TimeControl "180+1"]
[Date "2022.03.22"]
[WhiteClock "0:02:51"]
[BlackClock "0:02:32"]

1. b3 {[%clk 0:03:00]}  Nf6 {[%clk 0:02:56]} 2. Bb2 {[%clk 0:03:01]}  e6 {[%clk 0:02:54]} 3. Nf3 {[%clk 0:03:02]}  d5 {[%clk 0:02:54]} 4. c4 {[%clk 0:03:02]}  b6 {[%clk 0:02:54]} 5. cxd5 {[%clk 0:03:01]}  exd5 {[%clk 0:02:55]} 6. g3 {[%clk 0:03:02]}  Bb7 {[%clk 0:02:55]} 7. Bg2 {[%clk 0:03:03]}  Nbd7 {[%clk 0:02:55]} 8. O-O {[%clk 0:03:03]}  Bd6 {[%clk 0:02:56]} 9. e3 {[%clk 0:03:03]}  O-O {[%clk 0:02:56]} 10. Nc3 {[%clk 0:03:04]}  a6 {[%clk 0:02:56]} 11. Rc1 {[%clk 0:03:04]}  Qe7 {[%clk 0:02:56]} 12. Re1 {[%clk 0:03:05]}  Rfe8 {[%clk 0:02:56]} 13. Re2 {[%clk 0:03:04]}  c5 {[%clk 0:02:54]} 14. d4 {[%clk 0:03:04]}  Rad8 {[%clk 0:02:44]} 15. Rd2 {[%clk 0:03:02]}  Ne4 {[%clk 0:02:43]} 16. Rdc2 {[%clk 0:02:57]}  Ndf6 {[%clk 0:02:38]} 17. Ne2 {[%clk 0:02:53]}  Nxf2 {[%clk 0:02:35]} 18. Kxf2 {[%clk 0:02:52]}  Ng4+ {[%clk 0:02:32]} 19. Kg1 {[%clk 0:02:52]}  Qxe3+ {[%clk 0:02:32]} 20. Kf1 {[%clk 0:02:51]}  Qf2# {[%clk 0:02:32]} 0-1


[Site "https://www.chess.com"]

[Event "Titled Tuesday Blitz March 22 Late 2022"]
[White "Bongo Akanga Ndjila, Barthelemy"]
[Black "Hartikainen, Jarmo"]
[WhiteFideId "10609431"]
[BlackFideId "503134"]
[WhiteElo "1803"]
[BlackElo "2081"]
[Result "1-0"]
[Round "10"]
[TimeControl "180+1"]
[Date "2022.03.22"]
[WhiteClock "0:01:16"]
[BlackClock "0:00:13"]

1. d4 {[%clk 0:03:00]}  Nf6 {[%clk 0:02:58]} 2. c4 {[%clk 0:03:00]}  g6 {[%clk 0:02:58]} 3. Nc3 {[%clk 0:03:00]}  d5 {[%clk 0:02:58]} 4. Nf3 {[%clk 0:02:58]}  Bg7 {[%clk 0:02:57]} 5. cxd5 {[%clk 0:02:59]}  Nxd5 {[%clk 0:02:57]} 6. e4 {[%clk 0:02:59]}  Nxc3 {[%clk 0:02:57]} 7. bxc3 {[%clk 0:02:59]}  O-O {[%clk 0:02:58]} 8. Be2 {[%clk 0:02:58]}  c5 {[%clk 0:02:58]} 9. O-O {[%clk 0:02:56]}  b6 {[%clk 0:02:34]} 10. Be3 {[%clk 0:02:51]}  Nd7 {[%clk 0:02:32]} 11. Rc1 {[%clk 0:02:48]}  Bb7 {[%clk 0:02:31]} 12. d5 {[%clk 0:02:46]}  h6 {[%clk 0:02:22]} 13. c4 {[%clk 0:02:45]}  Kh7 {[%clk 0:02:21]} 14. Qd2 {[%clk 0:02:43]}  Nf6 {[%clk 0:02:09]} 15. e5 {[%clk 0:02:40]}  Ng4 {[%clk 0:02:09]} 16. Bf4 {[%clk 0:02:38]}  f6 {[%clk 0:01:13]} 17. e6 {[%clk 0:02:31]}  Ne5 {[%clk 0:01:06]} 18. Nxe5 {[%clk 0:02:19]}  fxe5 {[%clk 0:01:07]} 19. Bg3 {[%clk 0:02:18]}  Rf6 {[%clk 0:00:30]} 20. Bxe5 {[%clk 0:02:07]}  Rxe6 {[%clk 0:00:26]} 21. Bxg7 {[%clk 0:02:03]}  Kxg7 {[%clk 0:00:25]} 22. Bg4 {[%clk 0:01:54]}  Rf6 {[%clk 0:00:25]} 23. Rfe1 {[%clk 0:01:52]}  Qd6 {[%clk 0:00:23]} 24. Qe3 {[%clk 0:01:51]}  Re8 {[%clk 0:00:22]} 25. Rc2 {[%clk 0:01:48]}  Rf7 {[%clk 0:00:20]} 26. Be6 {[%clk 0:01:46]}  Rf6 {[%clk 0:00:19]} 27. Rc3 {[%clk 0:01:42]}  Ba6 {[%clk 0:00:18]} 28. Qh3 {[%clk 0:01:41]}  b5 {[%clk 0:00:15]} 29. cxb5 {[%clk 0:01:39]}  Bxb5 {[%clk 0:00:15]} 30. Qe3 {[%clk 0:01:26]}  Ref8 {[%clk 0:00:15]} 31. f3 {[%clk 0:01:24]}  c4 {[%clk 0:00:15]} 32. a4 {[%clk 0:01:22]}  Bxa4 {[%clk 0:00:13]} 33. Rxc4 {[%clk 0:01:21]}  Bb5 {[%clk 0:00:13]} 34. Rh4 {[%clk 0:01:17]}  a6 {[%clk 0:00:13]} 35. Qxh6# {[%clk 0:01:16]} 1-0


[Site "https://www.chess.com"]

[Event "Titled Tuesday Blitz March 22 Late 2022"]
[White "Boyer, Mahel"]
[Black "Zhigalko, Sergei"]
[WhiteFideId "45102422"]
[BlackFideId "13502956"]
[WhiteElo "2328"]
[BlackElo "2662"]
[Result "1-0"]
[Round "10"]
[TimeControl "180+1"]
[Date "2022.03.22"]
[WhiteClock "0:00:09"]
[BlackClock "0:00:02"]

1. d4 {[%clk 0:03:00]}  Nf6 {[%clk 0:03:00]} 2. c4 {[%clk 0:03:01]}  e6 {[%clk 0:02:59]} 3. Nf3 {[%clk 0:03:01]}  b6 {[%clk 0:02:59]} 4. a3 {[%clk 0:03:00]}  Ba6 {[%clk 0:02:55]} 5. Qc2 {[%clk 0:03:00]}  Bb7 {[%clk 0:02:54]} 6. Nc3 {[%clk 0:02:59]}  c5 {[%clk 0:02:55]} 7. d5 {[%clk 0:02:55]}  exd5 {[%clk 0:02:54]} 8. cxd5 {[%clk 0:02:55]}  Nxd5 {[%clk 0:02:55]} 9. e4 {[%clk 0:02:20]}  Nxc3 {[%clk 0:02:46]} 10. Qxc3 {[%clk 0:02:21]}  Bxe4 {[%clk 0:02:30]} 11. Bc4 {[%clk 0:02:18]}  Bxf3 {[%clk 0:01:20]} 12. Qxf3 {[%clk 0:02:16]}  Qe7+ {[%clk 0:01:21]} 13. Kd1 {[%clk 0:02:09]}  Qd6+ {[%clk 0:01:17]} 14. Kc2 {[%clk 0:02:08]}  Qg6+ {[%clk 0:01:07]} 15. Bd3 {[%clk 0:02:06]}  Nc6 {[%clk 0:01:05]} 16. Bxg6 {[%clk 0:01:42]}  Nd4+ {[%clk 0:01:04]} 17. Kb1 {[%clk 0:01:42]}  Nxf3 {[%clk 0:01:05]} 18. Be4 {[%clk 0:01:43]}  O-O-O {[%clk 0:00:57]} 19. Bxf3 {[%clk 0:01:36]}  d5 {[%clk 0:00:58]} 20. Rd1 {[%clk 0:01:31]}  d4 {[%clk 0:00:57]} 21. b3 {[%clk 0:01:20]}  Bd6 {[%clk 0:00:57]} 22. Kc2 {[%clk 0:01:20]}  Rhe8 {[%clk 0:00:57]} 23. Bd2 {[%clk 0:01:17]}  Kc7 {[%clk 0:00:56]} 24. Kd3 {[%clk 0:01:17]}  f5 {[%clk 0:00:50]} 25. h4 {[%clk 0:01:14]}  g6 {[%clk 0:00:50]} 26. Bg5 {[%clk 0:01:13]}  Be7 {[%clk 0:00:50]} 27. Re1 {[%clk 0:01:13]}  Bxg5 {[%clk 0:00:50]} 28. hxg5 {[%clk 0:01:13]}  Kd6 {[%clk 0:00:50]} 29. Kc4 {[%clk 0:01:11]}  Rb8 {[%clk 0:00:42]} 30. b4 {[%clk 0:01:08]}  Rec8 {[%clk 0:00:36]} 31. bxc5+ {[%clk 0:01:06]}  bxc5 {[%clk 0:00:33]} 32. Re2 {[%clk 0:01:05]}  Re8 {[%clk 0:00:31]} 33. Rxe8 {[%clk 0:00:58]}  Rxe8 {[%clk 0:00:32]} 34. Rb1 {[%clk 0:00:58]}  Re7 {[%clk 0:00:22]} 35. Rb7 {[%clk 0:00:45]}  Re1 {[%clk 0:00:21]} 36. Rxh7 {[%clk 0:00:40]}  Rc1+ {[%clk 0:00:21]} 37. Kd3 {[%clk 0:00:13]}  Rc3+ {[%clk 0:00:21]} 38. Kd2 {[%clk 0:00:13]}  Rxa3 {[%clk 0:00:22]} 39. Rg7 {[%clk 0:00:14]}  c4 {[%clk 0:00:22]} 40. Rxg6+ {[%clk 0:00:14]}  Ke5 {[%clk 0:00:17]} 41. Rc6 {[%clk 0:00:14]}  Ra2+ {[%clk 0:00:18]} 42. Kd1 {[%clk 0:00:12]}  c3 {[%clk 0:00:14]} 43. g6 {[%clk 0:00:12]}  Ra1+ {[%clk 0:00:07]} 44. Kc2 {[%clk 0:00:13]}  Ra2+ {[%clk 0:00:08]} 45. Kb1 {[%clk 0:00:12]}  Rb2+ {[%clk 0:00:06]} 46. Kc1 {[%clk 0:00:12]}  Rb8 {[%clk 0:00:03]} 47. Rc5+ {[%clk 0:00:11]}  Kf6 {[%clk 0:00:03]} 48. Rc6+ {[%clk 0:00:11]}  Kg7 {[%clk 0:00:03]} 49. g4 {[%clk 0:00:09]}  fxg4 {[%clk 0:00:02]} 50. Bxg4 {[%clk 0:00:09]}  a5 {[%clk 0:00:02]} 51. f4 {[%clk 0:00:09]} 1-0


[Site "https://www.chess.com"]

[Event "Titled Tuesday Blitz March 22 Late 2022"]
[White "Dobrov, Vladimir"]
[Black "Pichot, Alan"]
[WhiteFideId "4136594"]
[BlackFideId "110973"]
[WhiteElo "2614"]
[BlackElo "2579"]
[Result "1-0"]
[Round "10"]
[TimeControl "180+1"]
[Date "2022.03.22"]
[WhiteClock "0:00:24"]
[BlackClock "0:00:05"]

1. e4 {[%clk 0:03:00]}  c5 {[%clk 0:02:58]} 2. a3 {[%clk 0:03:00]}  b6 {[%clk 0:02:53]} 3. Nc3 {[%clk 0:02:59]}  Bb7 {[%clk 0:02:53]} 4. Nf3 {[%clk 0:02:59]}  e6 {[%clk 0:02:49]} 5. d4 {[%clk 0:02:59]}  cxd4 {[%clk 0:02:48]} 6. Nxd4 {[%clk 0:03:00]}  a6 {[%clk 0:02:48]} 7. g4 {[%clk 0:02:56]}  Ne7 {[%clk 0:02:43]} 8. h4 {[%clk 0:02:51]}  d5 {[%clk 0:02:35]} 9. Bg2 {[%clk 0:02:46]}  e5 {[%clk 0:02:32]} 10. exd5 {[%clk 0:02:31]}  exd4 {[%clk 0:02:30]} 11. Qxd4 {[%clk 0:02:32]}  Nd7 {[%clk 0:01:29]} 12. h5 {[%clk 0:02:20]}  Nf6 {[%clk 0:01:26]} 13. Bg5 {[%clk 0:02:14]}  Qd6 {[%clk 0:01:12]} 14. O-O-O {[%clk 0:02:10]}  O-O-O {[%clk 0:01:10]} 15. Bf4 {[%clk 0:01:57]}  Qc5 {[%clk 0:01:10]} 16. Qe5 {[%clk 0:01:55]}  Nd7 {[%clk 0:01:06]} 17. Qe2 {[%clk 0:01:43]}  Nf6 {[%clk 0:01:04]} 18. Qe5 {[%clk 0:01:12]}  Nd7 {[%clk 0:01:04]} 19. Qe2 {[%clk 0:01:11]}  Nf6 {[%clk 0:01:05]} 20. Na4 {[%clk 0:01:01]}  Qa5 {[%clk 0:01:03]} 21. Qc4+ {[%clk 0:00:58]}  Kd7 {[%clk 0:01:01]} 22. Qc7+ {[%clk 0:00:50]}  Ke8 {[%clk 0:01:01]} 23. Qxb7 {[%clk 0:00:48]}  Qxa4 {[%clk 0:01:01]} 24. Bc7 {[%clk 0:00:40]}  Qxg4 {[%clk 0:00:33]} 25. d6 {[%clk 0:00:30]}  Qc8 {[%clk 0:00:24]} 26. Bc6+ {[%clk 0:00:24]}  Nd7 {[%clk 0:00:18]} 27. Qxb6 {[%clk 0:00:24]}  Nxc6 {[%clk 0:00:15]} 28. Qxc6 {[%clk 0:00:24]}  Be7 {[%clk 0:00:05]} 29. dxe7 {[%clk 0:00:23]}  Kxe7 {[%clk 0:00:05]} 30. Qd6+ {[%clk 0:00:23]}  Ke8 {[%clk 0:00:05]} 31. Rhe1+ {[%clk 0:00:24]} 1-0


[Site "https://www.chess.com"]

[Event "Titled Tuesday Blitz March 22 Late 2022"]
[White "Dolzhykova, Kateryna"]
[Black "Pinheiro, Iung Alicio de O."]
[WhiteFideId "14113414"]
[BlackFideId "2104350"]
[WhiteElo "2184"]
[BlackElo "2530"]
[Result "1-0"]
[Round "10"]
[TimeControl "180+1"]
[Date "2022.03.22"]
[WhiteClock "0:00:13"]
[BlackClock "0:00:18"]

1. e4 {[%clk 0:03:00]}  c5 {[%clk 0:02:59]} 2. Nf3 {[%clk 0:03:00]}  Nc6 {[%clk 0:02:59]} 3. Bb5 {[%clk 0:02:59]}  e6 {[%clk 0:02:59]} 4. O-O {[%clk 0:02:59]}  Nge7 {[%clk 0:02:58]} 5. Re1 {[%clk 0:02:58]}  Nd4 {[%clk 0:02:58]} 6. Nxd4 {[%clk 0:02:57]}  cxd4 {[%clk 0:02:59]} 7. c3 {[%clk 0:02:53]}  a6 {[%clk 0:02:59]} 8. Ba4 {[%clk 0:02:53]}  b5 {[%clk 0:02:56]} 9. Bb3 {[%clk 0:02:53]}  Nc6 {[%clk 0:02:55]} 10. a4 {[%clk 0:02:50]}  b4 {[%clk 0:02:45]} 11. Bc2 {[%clk 0:02:27]}  Bc5 {[%clk 0:02:44]} 12. Qg4 {[%clk 0:02:25]}  O-O {[%clk 0:02:41]} 13. d3 {[%clk 0:02:25]}  f5 {[%clk 0:02:19]} 14. exf5 {[%clk 0:02:22]}  Rxf5 {[%clk 0:02:20]} 15. c4 {[%clk 0:02:12]}  Bb7 {[%clk 0:02:17]} 16. Nd2 {[%clk 0:02:11]}  Rg5 {[%clk 0:02:03]} 17. Qh3 {[%clk 0:02:04]}  Qe7 {[%clk 0:01:19]} 18. Ne4 {[%clk 0:02:03]}  Rg6 {[%clk 0:01:19]} 19. Bd1 {[%clk 0:01:59]}  Rf8 {[%clk 0:01:13]} 20. Bh5 {[%clk 0:01:58]}  Rf5 {[%clk 0:00:55]} 21. Bxg6 {[%clk 0:01:57]}  hxg6 {[%clk 0:00:56]} 22. Bd2 {[%clk 0:01:51]}  Ne5 {[%clk 0:00:54]} 23. Qg3 {[%clk 0:01:38]}  g5 {[%clk 0:00:41]} 24. Bxg5 {[%clk 0:01:17]}  Qf8 {[%clk 0:00:41]} 25. Bh6 {[%clk 0:00:43]}  Be7 {[%clk 0:00:37]} 26. Nd2 {[%clk 0:00:31]}  Qf6 {[%clk 0:00:32]} 27. Rxe5 {[%clk 0:00:05]}  Rxe5 {[%clk 0:00:25]} 28. Bf4 {[%clk 0:00:05]}  Rf5 {[%clk 0:00:24]} 29. Bd6 {[%clk 0:00:02]}  Bxd6 {[%clk 0:00:15]} 30. Qxd6 {[%clk 0:00:03]}  Bxg2 {[%clk 0:00:16]} 31. Ne4 {[%clk 0:00:02]}  Bxe4 {[%clk 0:00:15]} 32. dxe4 {[%clk 0:00:03]}  Rxf2 {[%clk 0:00:15]} 33. Qb8+ {[%clk 0:00:02]}  Kh7 {[%clk 0:00:15]} 34. Qg3 {[%clk 0:00:03]}  Rf3 {[%clk 0:00:14]} 35. Qg4 {[%clk 0:00:03]}  Rf4 {[%clk 0:00:14]} 36. Qh5+ {[%clk 0:00:03]}  Kg8 {[%clk 0:00:14]} 37. Qe8+ {[%clk 0:00:03]}  Qf8 {[%clk 0:00:13]} 38. Qxf8+ {[%clk 0:00:03]}  Kxf8 {[%clk 0:00:13]} 39. Re1 {[%clk 0:00:04]}  Ke7 {[%clk 0:00:13]} 40. Kg2 {[%clk 0:00:04]}  e5 {[%clk 0:00:11]} 41. Kg3 {[%clk 0:00:03]}  a5 {[%clk 0:00:12]} 42. b3 {[%clk 0:00:03]}  d6 {[%clk 0:00:11]} 43. Re2 {[%clk 0:00:03]}  d3 {[%clk 0:00:11]} 44. Re3 {[%clk 0:00:03]}  d2 {[%clk 0:00:11]} 45. Rd3 {[%clk 0:00:03]}  Rxe4 {[%clk 0:00:11]} 46. Rxd2 {[%clk 0:00:04]}  Re3+ {[%clk 0:00:11]} 47. Kg4 {[%clk 0:00:04]}  Rxb3 {[%clk 0:00:12]} 48. Rd5 {[%clk 0:00:04]}  Rc3 {[%clk 0:00:11]} 49. Rxa5 {[%clk 0:00:03]}  b3 {[%clk 0:00:12]} 50. Kf5 {[%clk 0:00:03]}  Rf3+ {[%clk 0:00:11]} 51. Ke4 {[%clk 0:00:03]}  Rc3 {[%clk 0:00:10]} 52. Kd5 {[%clk 0:00:03]}  b2 {[%clk 0:00:11]} 53. Ra7+ {[%clk 0:00:02]}  Kf6 {[%clk 0:00:11]} 54. Rb7 {[%clk 0:00:03]}  Rd3+ {[%clk 0:00:10]} 55. Kc6 {[%clk 0:00:03]}  Rd2 {[%clk 0:00:11]} 56. a5 {[%clk 0:00:03]}  Rxh2 {[%clk 0:00:10]} 57. a6 {[%clk 0:00:03]}  b1=Q {[%clk 0:00:11]} 58. Rxb1 {[%clk 0:00:02]}  Ra2 {[%clk 0:00:12]} 59. Kb7 {[%clk 0:00:02]}  e4 {[%clk 0:00:12]} 60. a7 {[%clk 0:00:03]}  Ke5 {[%clk 0:00:12]} 61. a8=Q {[%clk 0:00:03]}  Rxa8 {[%clk 0:00:12]} 62. Kxa8 {[%clk 0:00:04]}  Kd4 {[%clk 0:00:12]} 63. Rd1+ {[%clk 0:00:03]}  Ke5 {[%clk 0:00:11]} 64. Rd5+ {[%clk 0:00:03]}  Ke6 {[%clk 0:00:10]} 65. Kb7 {[%clk 0:00:04]}  e3 {[%clk 0:00:10]} 66. Rd3 {[%clk 0:00:03]}  e2 {[%clk 0:00:10]} 67. Re3+ {[%clk 0:00:03]}  Kf5 {[%clk 0:00:11]} 68. Rxe2 {[%clk 0:00:04]}  g5 {[%clk 0:00:10]} 69. Kc6 {[%clk 0:00:05]}  g4 {[%clk 0:00:10]} 70. Kxd6 {[%clk 0:00:05]}  Kf4 {[%clk 0:00:11]} 71. c5 {[%clk 0:00:04]}  Kf3 {[%clk 0:00:12]} 72. Re8 {[%clk 0:00:04]}  g3 {[%clk 0:00:13]} 73. Rg8 {[%clk 0:00:05]}  g2 {[%clk 0:00:13]} 74. c6 {[%clk 0:00:06]}  Kf2 {[%clk 0:00:14]} 75. c7 {[%clk 0:00:06]}  g1=Q {[%clk 0:00:14]} 76. Rxg1 {[%clk 0:00:06]}  Kxg1 {[%clk 0:00:15]} 77. c8=Q {[%clk 0:00:07]}  Kf2 {[%clk 0:00:16]} 78. Qe6 {[%clk 0:00:06]}  Kf3 {[%clk 0:00:15]} 79. Qe5 {[%clk 0:00:07]}  Kf2 {[%clk 0:00:15]} 80. Kd5 {[%clk 0:00:08]}  Kf3 {[%clk 0:00:15]} 81. Qe4+ {[%clk 0:00:09]}  Kf2 {[%clk 0:00:16]} 82. Kd4 {[%clk 0:00:10]}  Kf1 {[%clk 0:00:17]} 83. Qe3 {[%clk 0:00:11]}  Kg2 {[%clk 0:00:17]} 84. Qf4 {[%clk 0:00:11]}  Kh3 {[%clk 0:00:17]} 85. Qg5 {[%clk 0:00:11]}  Kh2 {[%clk 0:00:17]} 86. Ke3 {[%clk 0:00:12]}  Kh3 {[%clk 0:00:18]} 87. Kf3 {[%clk 0:00:12]}  Kh2 {[%clk 0:00:18]} 88. Qg2# {[%clk 0:00:13]} 1-0


[Site "https://www.chess.com"]